Department Family,Entity,Date,Expense Type,Expense area,Supplier,Transaction Number,Amount in Sterling �s incl VAT ,Supplier VAT Registration number
NHS,Glos Hospitals NHS Foundation Trust,01/09/2021,Finished processed goods,Inventories,Bayer,000090-41,"31,935.96", 
NHS,Glos Hospitals NHS Foundation Trust,07/09/2021,Finished processed goods,Inventories,Bayer,000090-43,"32,848.42", 
NHS,Glos Hospitals NHS Foundation Trust,01/09/2021,Finished processed goods,Inventories,Amgen Limited,000090-56,"33,292.80", 
NHS,Glos Hospitals NHS Foundation Trust,07/09/2021,Finished processed goods,Inventories,Janssen Cilag Limited,000090-72,"53,913.60", 
NHS,Glos Hospitals NHS Foundation Trust,01/09/2021,Finished processed goods,Inventories,Novartis Pharmaceuticals UK Limited,000095-4,"48,081.60", 
NHS,Glos Hospitals NHS Foundation Trust,07/09/2021,Finished processed goods,Inventories,Novartis Pharmaceuticals UK Limited,000097-15,"42,739.20", 
NHS,Glos Hospitals NHS Foundation Trust,21/09/2021,Finished processed goods,Inventories,Novartis Pharmaceuticals UK Limited,000097-17,"42,739.20", 
NHS,Glos Hospitals NHS Foundation Trust,07/09/2021,Finished processed goods,Inventories,Janssen Cilag Limited,000097-194,"53,913.60", 
NHS,Glos Hospitals NHS Foundation Trust,07/09/2021,Finished processed goods,Inventories,Janssen Cilag Limited,000097-197,"25,960.42", 
NHS,Glos Hospitals NHS Foundation Trust,07/09/2021,Finished processed goods,Inventories,Bayer,000097-20,"31,935.96", 
NHS,Glos Hospitals NHS Foundation Trust,07/09/2021,Finished processed goods,Inventories,Bristol Myers Squibb Pharmaceuticals Limited,000097-25,"37,599.36", 
NHS,Glos Hospitals NHS Foundation Trust,07/09/2021,Finished processed goods,Inventories,Roche Products Limited,000097-27,"115,238.79", 
NHS,Glos Hospitals NHS Foundation Trust,07/09/2021,Finished processed goods,Inventories,Roche Products Limited,000097-28,"52,980.19", 
NHS,Glos Hospitals NHS Foundation Trust,21/09/2021,Finished processed goods,Inventories,Roche Products Limited,000097-32,"67,956.01", 
NHS,Glos Hospitals NHS Foundation Trust,07/09/2021,Finished processed goods,Inventories,Aah Pharmaceuticals Limited,000100-16,"27,643.20", 
NHS,Glos Hospitals NHS Foundation Trust,14/09/2021,Finished processed goods,Inventories,Celgene Limited,000104-119,"47,138.11", 
NHS,Glos Hospitals NHS Foundation Trust,21/09/2021,Finished processed goods,Inventories,Bayer,000104-13,"45,622.80", 
NHS,Glos Hospitals NHS Foundation Trust,14/09/2021,Finished processed goods,Inventories,Bayer,000106-15,"45,622.80", 
NHS,Glos Hospitals NHS Foundation Trust,14/09/2021,Finished processed goods,Inventories,Bayer,000106-17,"45,622.80", 
NHS,Glos Hospitals NHS Foundation Trust,14/09/2021,Finished processed goods,Inventories,Bayer,000106-172,"32,848.42", 
NHS,Glos Hospitals NHS Foundation Trust,21/09/2021,Finished processed goods,Inventories,Janssen Cilag Limited,000106-186,"53,913.60", 
NHS,Glos Hospitals NHS Foundation Trust,21/09/2021,Finished processed goods,Inventories,Novartis Pharmaceuticals UK Limited,000111-3,"48,081.60", 
NHS,Glos Hospitals NHS Foundation Trust,21/09/2021,Finished processed goods,Inventories,Alloga UK Limited,000111-63,"36,000.00", 
NHS,Glos Hospitals NHS Foundation Trust,28/09/2021,Finished processed goods,Inventories,Novartis Pharmaceuticals UK Limited,000114-16,"45,681.84", 
NHS,Glos Hospitals NHS Foundation Trust,21/09/2021,Finished processed goods,Inventories,Bayer,000114-18,"32,848.42", 
NHS,Glos Hospitals NHS Foundation Trust,21/09/2021,Finished processed goods,Inventories,Bayer,000114-21,"32,848.42", 
NHS,Glos Hospitals NHS Foundation Trust,21/09/2021,Finished processed goods,Inventories,Bayer,000114-22,"32,848.42", 
NHS,Glos Hospitals NHS Foundation Trust,28/09/2021,Finished processed goods,Inventories,Bayer,000114-23,"32,848.42", 
NHS,Glos Hospitals NHS Foundation Trust,21/09/2021,Finished processed goods,Inventories,Bristol Myers Squibb Pharmaceuticals Limited,000114-24,"71,854.68", 
NHS,Glos Hospitals NHS Foundation Trust,21/09/2021,Finished processed goods,Inventories,Bristol Myers Squibb Pharmaceuticals Limited,000114-25,"37,599.36", 
NHS,Glos Hospitals NHS Foundation Trust,21/09/2021,Finished processed goods,Inventories,Bristol Myers Squibb Pharmaceuticals Limited,000114-26,"37,599.36", 
NHS,Glos Hospitals NHS Foundation Trust,21/09/2021,Finished processed goods,Inventories,Qualasept Ltd t/a Bath ASU,000114-261,"49,224.77", 
NHS,Glos Hospitals NHS Foundation Trust,28/09/2021,Finished processed goods,Inventories,Celgene Limited,000117-189,"55,454.11", 
NHS,Glos Hospitals NHS Foundation Trust,28/09/2021,Finished processed goods,Inventories,Alloga UK Limited,000118-188,"36,000.00", 
NHS,Glos Hospitals NHS Foundation Trust,28/09/2021,Finished processed goods,Inventories,Novartis Pharmaceuticals UK Limited,000118-59,"57,697.92", 
NHS,Glos Hospitals NHS Foundation Trust,28/09/2021,Finished processed goods,Inventories,Bayer,000118-81,"62,047.01", 
NHS,Glos Hospitals NHS Foundation Trust,28/09/2021,Finished processed goods,Inventories,Bayer,000118-82,"45,622.80", 
NHS,Glos Hospitals NHS Foundation Trust,28/09/2021,Finished processed goods,Inventories,Bayer,000118-83,"45,622.80", 
NHS,Glos Hospitals NHS Foundation Trust,07/09/2021,X-Ray Equipment : Maintenance,Breast Screening - CGH,Hologic UK Limited,853035,"43,740.00", 
NHS,Glos Hospitals NHS Foundation Trust,14/09/2021,Laboratory Reagents,SCBU - GRH,Chrystal Consulting Limited,855287,"56,615.34", 
NHS,Glos Hospitals NHS Foundation Trust,07/09/2021,Consultant - new contract,Consultants-Paediatrics-GRH,University Hospital Bristol & Weston NHSFT,858542,"28,599.75", 
NHS,Glos Hospitals NHS Foundation Trust,07/09/2021,Consultant - new contract,Consultants - Obs & Gynae & Gynae Onc,University Hospital Bristol & Weston NHSFT,858542,"28,599.75", 
NHS,Glos Hospitals NHS Foundation Trust,01/09/2021,Building - External Contracts,Capital Project Control,Apleona PPP Limited,858751,"38,188.56", 
NHS,Glos Hospitals NHS Foundation Trust,07/09/2021,Contract : Other External,GHP Contract,Gloucester Healthcare Partnership Limited,860143,"578,981.98", 
NHS,Glos Hospitals NHS Foundation Trust,01/09/2021,Non - Healthcare - NHS Trusts,Hereford LINAC,HA95059 Wye Valley NHS Trust,860554,"44,655.39", 
NHS,Glos Hospitals NHS Foundation Trust,07/09/2021,External Contracts : Other,Radiography Consultants,Everlight Radiology,861366,"75,172.50", 
NHS,Glos Hospitals NHS Foundation Trust,07/09/2021,Computer Maintenance,Network Infrastructure,Updata Infrastructure UK Limited,861396,"37,216.20", 
NHS,Glos Hospitals NHS Foundation Trust,07/09/2021,Data Lines,Network Infrastructure,Updata Infrastructure UK Limited,861400,"39,005.40", 
NHS,Glos Hospitals NHS Foundation Trust,07/09/2021,Data Lines,Network Infrastructure,Updata Infrastructure UK Limited,861401,"94,336.50", 
NHS,Glos Hospitals NHS Foundation Trust,01/09/2021,Nursery Voucher Scheme,Pay Deductions,Wider Plan Limited,861794,"26,034.50", 
NHS,Glos Hospitals NHS Foundation Trust,01/09/2021,Training Expenses,General Theatre 1 - Non Pay only,CMR Surgical Limited,861797,"126,000.00", 
NHS,Glos Hospitals NHS Foundation Trust,01/09/2021,Laboratory External Tests,Haematology / Immunology Lab trustwide - NONPAY,HA91729 North Bristol NHS Trust,861800,"66,763.00", 
NHS,Glos Hospitals NHS Foundation Trust,21/09/2021,Medical & Surgical Equipment Maintenance Contracts,Radiography,Supply Chain Coordination Ltd - Maint. (201),861839,"69,677.42", 
NHS,Glos Hospitals NHS Foundation Trust,01/09/2021,Medical & Surgical Equipment : Disposable,CAPD Renal,Baxter Healthcare Limited,861848,"37,942.45", 
NHS,Glos Hospitals NHS Foundation Trust,14/09/2021,Passthrough Drugs - High Cost Blood Products,Blood Products,Octapharma Limited,861938,"31,860.00", 
NHS,Glos Hospitals NHS Foundation Trust,01/09/2021,Computer Software / License  Fees,IT Contracts Shared Service,TOPdesk UK Limited,862003,"49,658.40", 
NHS,Glos Hospitals NHS Foundation Trust,01/09/2021,General Materials (Eg EBME OT Etc),Radiography,Canon Medical Systems Limited,862024,"437,856.00", 
NHS,Glos Hospitals NHS Foundation Trust,01/09/2021,Non - Healthcare - NHS Trusts,Regional CoVid-19 Testing Centre,Gloucestershire Health and Care NHS FT Pr GCS,862289,"202,566.00", 
NHS,Glos Hospitals NHS Foundation Trust,01/09/2021,Non - Healthcare - NHS Trusts,Regional CoVid-19 Testing Centre,Gloucestershire Health and Care NHS FT Pr GCS,862290,"51,380.00", 
NHS,Glos Hospitals NHS Foundation Trust,01/09/2021,Purchase Computers/Systems,Capital Project Control,Allscripts Healthcare (IT) UK Limited,862298,"59,683.68", 
NHS,Glos Hospitals NHS Foundation Trust,01/09/2021,Purchase Computers/Systems,Capital Project Control,Insight Direct (UK) Limited,862299,"56,400.00", 
NHS,Glos Hospitals NHS Foundation Trust,01/09/2021,Purchase Computers/Systems,Capital Project Control,Insight Direct (UK) Limited,862300,"29,412.00", 
NHS,Glos Hospitals NHS Foundation Trust,14/09/2021,Passthrough Drugs - High Cost Blood Products,Blood Products,CSL Behring UK Limited,862345,"39,878.00", 
NHS,Glos Hospitals NHS Foundation Trust,07/09/2021,Medical & Surgical Equip. : Finance & Op. Leases,Leases,Siemens Financial Services Limited,862352,"60,294.27", 
NHS,Glos Hospitals NHS Foundation Trust,21/09/2021,Contractual Clinical Services,Renal Dialysis,B Braun Avitum UK Limited,862381,"121,099.18", 
NHS,Glos Hospitals NHS Foundation Trust,07/09/2021,External Consultancy Fees,Strategy & Transformation,exi Project Management South Limited,862535,"37,162.81", 
NHS,Glos Hospitals NHS Foundation Trust,14/09/2021,Fresh Blood & Plasma Products,Blood Products,HA73961 NHS Blood & Transplant,862594,"59,681.76", 
NHS,Glos Hospitals NHS Foundation Trust,14/09/2021,Fresh Blood & Plasma Products,Blood Products,HA73961 NHS Blood & Transplant,862595,"72,092.51", 
NHS,Glos Hospitals NHS Foundation Trust,21/09/2021,NHS Logistics control,Payables - Manual,Supply Chain Coordination Ltd - Consumables,862619,"43,602.27", 
NHS,Glos Hospitals NHS Foundation Trust,21/09/2021,Sal Sacrifice Car Scheme,Pay Deductions,Tusker Direct,862812,"42,345.04", 
NHS,Glos Hospitals NHS Foundation Trust,21/09/2021,Colour Connection,Payables - Manual,Colour Connection,862833,"47,003.88", 
NHS,Glos Hospitals NHS Foundation Trust,03/09/2021,Barclay Card,Payables - Manual,Barclaycard Commercial,863022,"77,576.15", 
NHS,Glos Hospitals NHS Foundation Trust,07/09/2021,Rates,Rates - GRH,Gloucester City Council,863208,"209,920.00", 
NHS,Glos Hospitals NHS Foundation Trust,07/09/2021,Rates,Rates - CGH,Cheltenham Borough Council,863213,"90,624.00", 
NHS,Glos Hospitals NHS Foundation Trust,07/09/2021,Finished processed goods,Inventories,Alloga UK Limited,863228,"36,000.00", 
NHS,Glos Hospitals NHS Foundation Trust,14/09/2021,Regular recharges,Scheduled Recharges from NPX,Gloucestershire Health and Care NHS FT Pr GCS,863248,"818,960.00", 
NHS,Glos Hospitals NHS Foundation Trust,14/09/2021,Purchase Computers/Systems,Capital Project Control,XMA Limited,863386,"93,259.20", 
NHS,Glos Hospitals NHS Foundation Trust,14/09/2021,Regular recharges,Scheduled Recharges from NPX,Gloucestershire Health and Care NHS FT Pr GCS,863400,"69,661.94", 
NHS,Glos Hospitals NHS Foundation Trust,21/09/2021,Computer Software / License  Fees,Senior Nurses - Diabetes,Sensyne Health Group Limited,863411,"48,000.00", 
NHS,Glos Hospitals NHS Foundation Trust,21/09/2021,External Contracts : Other,Smartcare,InterSystems,863451,"77,685.59", 
NHS,Glos Hospitals NHS Foundation Trust,14/09/2021,Commercial Sector,Anaesthetics Theatre,Rotamap  Limited,863463,"40,756.89", 
NHS,Glos Hospitals NHS Foundation Trust,14/09/2021,Computer Maintenance,Computing - CGH HQ,Ascribe Ltd (Emis Health),863682,"57,600.00", 
NHS,Glos Hospitals NHS Foundation Trust,14/09/2021,Non - Healthcare - NHS Trusts,Hereford LINAC,HA95059 Wye Valley NHS Trust,863739,"46,071.81", 
NHS,Glos Hospitals NHS Foundation Trust,14/09/2021,Regular recharges,Scheduled Recharges from NPX,Gloucestershire Health and Care NHS FT Pr GCS,864031,"86,366.22", 
NHS,Glos Hospitals NHS Foundation Trust,14/09/2021,Regular recharges,Scheduled Recharges from NPX,Gloucestershire Health and Care NHS FT Pr GCS,864032,"184,855.26", 
NHS,Glos Hospitals NHS Foundation Trust,14/09/2021,Commercial Sector,Staff Health & Wellbeing,Gloucestershire Health & Care NHS F Trust,864115,"427,667.00", 
NHS,Glos Hospitals NHS Foundation Trust,14/09/2021,Regular recharges,Scheduled Recharges from NPX,Gloucestershire Health and Care NHS FT Pr GCS,864170,"27,830.87", 
NHS,Glos Hospitals NHS Foundation Trust,28/09/2021,Services From Local Authorities,Radiography,Cobalt Health,864195,"69,750.00", 
NHS,Glos Hospitals NHS Foundation Trust,21/09/2021,Building - External Contracts,Capital Project Control,Kier Infrastructure & Overseas Limited,864696,"639,878.48", 
NHS,Glos Hospitals NHS Foundation Trust,21/09/2021,Building - External Contracts,Capital Project Control,Kier Infrastructure & Overseas Limited,864697,"-639,878.48", 
NHS,Glos Hospitals NHS Foundation Trust,21/09/2021,Building - External Contracts,Capital Project Control,Kier Infrastructure & Overseas Limited,864698,"418,945.12", 
NHS,Glos Hospitals NHS Foundation Trust,21/09/2021,Building - External Contracts,Capital Project Control,Kier Infrastructure & Overseas Limited,864699,"220,933.37", 
NHS,Glos Hospitals NHS Foundation Trust,28/09/2021,Contractual Clinical Services,Renal Dialysis,B Braun Avitum UK Limited,864808,"170,536.86", 
NHS,Glos Hospitals NHS Foundation Trust,28/09/2021,NHS Logistics control,Payables - Manual,Supply Chain Coordination Ltd - Consumables,865070,"66,387.68", 
NHS,Glos Hospitals NHS Foundation Trust,28/09/2021,Finished processed goods,Inventories,Qualasept Ltd t/a Bath ASU,865275,"112,905.12", 
NHS,Glos Hospitals NHS Foundation Trust,24/09/2021,Contract : Other External,SubCo Client,NHS Gloucestershire Managed Services,865280,"5,500,520.50", 
NHS,Glos Hospitals NHS Foundation Trust,28/09/2021,Passthrough Drugs - High Cost Blood Products,Blood Products,CSL Behring UK Limited,865388,"41,656.00", 
NHS,Glos Hospitals NHS Foundation Trust,28/09/2021,Computer Maintenance,Maternity Ward,AIC Solutions,865481,"492,480.00", 
NHS,Glos Hospitals NHS Foundation Trust,28/09/2021,Computer Maintenance,Maternity Ward,AIC Solutions,865483,"-492,480.00", 
NHS,Glos Hospitals NHS Foundation Trust,28/09/2021,Contractual Clinical Services,Cardiac Investigations (ECG/Cardiology),AGITO Medical A/S,865492,"31,970.00", 
NHS,Glos Hospitals NHS Foundation Trust,28/09/2021,Passthrough Drugs - High Cost Blood Products,Blood Products,Octapharma Limited,865493,"32,400.00", 
NHS,Glos Hospitals NHS Foundation Trust,24/09/2021,Clinical Negligence,Trustwide Finance,NHS Resolution,865735,"2,171,179.70", 
NHS,Glos Hospitals NHS Foundation Trust,28/09/2021,Commercial Sector,Main Theatre - Non Pay only,Genmed.me Limited,865878,"1,568,296.55", 
NHS,Glos Hospitals NHS Foundation Trust,30/09/2021,Contract : Other External,SubCo Client,NHS Gloucestershire Managed Services,866231,"5,500,520.50", 
NHS,Glos Hospitals NHS Foundation Trust,28/09/2021,Other Transport Costs,Patient Transport Services GHX,E-Zec Medical Transport Services Ltd,866350,"28,742.55", 
